Cogmind - Beta 14 @@@ ROGUE MODE // 2024.12.14 @ 13:17:39 Player: Mathewnd Result: Destroyed by C-17 Slicer with Blade Saw Performance ------------- Evolutions (2) 1000 Regions Visited (5) 1000 Robots Destroyed (15) 75 Value Destroyed (317) 317 Prototype IDs (1) 20 Alien Tech Used (0) 0 Bonus (0) 0 TOTAL SCORE: 2412 Bonus ------- None Cogmind --------- Core Integrity 0/550 Matter 260/300 Energy 100/100 System Corruption 0% Temperature Cool (0) Movement Core (50) Location -8/Materials Parts ------- > --- POWER (1) -------- (None) > --- PROPULSION (4) --- (None) > --- UTILITY (4) ------ (None) > --- WEAPON (2) ------- (None) > --- INVENTORY (5) ---- Light Nuclear Core Flight Unit Flight Unit Sensor Array Peak State ------------ > --- POWER ------------ Light Nuclear Core > --- PROPULSION ------- Flight Unit Flight Unit Flight Unit Flight Unit > --- UTILITY ---------- Small Storage Unit Visual Processing Unit Experimental Sensor Array > --- WEAPON ----------- Particle Gun Light Assault Rifle > --- INVENTORY -------- Light Nuclear Core Flight Unit Flight Unit Sensor Array Particle Cannon Light Assault Rifle [Rating: 22] Favorites ----------- Power Light Nuclear Core Engine Ion Engine Power Core Light Nuclear Core Propulsion Aluminum Leg Leg Aluminum Leg Flight Unit Flight Unit Utility Small Storage Unit Device Experimental Sensor Array Storage Small Storage Unit Processor Visual Processing Unit Weapon Light Assault Rifle Energy Gun Particle Gun Energy Cannon Particle Cannon Ballistic Gun Light Assault Rifle Build | -11 -10 -10 -9 -9 -8 ------- Run | Yrd Mat Min Mat Min Mat Slots Evolved 4 | . . . 2 . 2 Power . | . . . . . . Propulsion 2 | . . . 2 . . Utility 2 | . . . . . 2 Weapon . | . . . . . . Parts Attached 25 | 6 6 7 2 . 4 Power 4 | 1 1 2 . . . Engine 2 | 1 1 . . . . Core 2 | . . 2 . . . Reactor . | . . . . . . Propulsion 11 | 2 4 3 2 . . Treads . | . . . . . . Leg 7 | 2 4 1 . . . Wheel . | . . . . . . Hover . | . . . . . . Flight 4 | . . 2 2 . . Utility 3 | 1 1 . . . 1 Device 1 | . . . . . 1 Storage 1 | 1 . . . . . Processor 1 | . 1 . . . . Hackware . | . . . . . . Protection . | . . . . . . Artifact . | . . . . . . Weapon 7 | 2 . 2 . . 3 Energy Gun 1 | . . 1 . . . Energy Cannon 2 | . . . . . 2 Ballistic Gun 4 | 2 . 1 . . 1 Ballistic Cannon . | . . . . . . Launcher . | . . . . . . Special Weapon . | . . . . . . Impact Weapon . | . . . . . . Slashing Weapon . | . . . . . . Piercing Weapon . | . . . . . . Special Melee Weapon . | . . . . . . Unidentified Prototypes 1 | . . . . . 1 Parts Lost 11 | . . 4 . . 7 Power 1 | . . . . . 1 Propulsion 6 | . . 2 . . 4 Utility . | . . . . . . Weapon 4 | . . 2 . . 2 Highest Loss Streak 7 | . . 4 . . 7 To Critical Strikes . | . . . . . . Average Slot Usage (%) 89 | . 89 96 100 100 42 Engine 5 | . 13 4 . . . Core 6 | . . 8 11 11 3 Leg 17 | . 28 21 . . . Flight 10 | . . 4 44 44 13 Storage 12 | . 14 14 11 11 6 Processor 10 | . 4 14 11 11 6 Energy Gun 3 | . . 2 11 11 3 Ballistic Gun 21 | . 28 24 11 11 4 Peak Build Rating 22 | 6 9 12 14 14 22 Average Rating 9 | 4 7 10 13 14 12 On Entrance 9 | . 6 9 12 14 14 Naked Turns 33 | . . . . . 33 Heaviest Build 15 | 11 13 14 14 14 15 Greatest Support 20 | 20 20 20 16 16 16 Greatest Overweight (x) 4 | . . 4 . . 2 Average Overweight (x) . | . . . . . . Largest Inventory Capacity 8 | 8 8 8 8 8 8 Average Capacity 7 | 7 8 8 8 8 7 Most Carried 8 | 4 8 8 8 7 6 Average Carried 6 | 2 6 7 6 7 5 Final Capacity 8 | 8 8 8 8 8 5 Final Carried 8 | 4 8 8 7 7 4 Class Distribution -------------------- 53% | Mutant 28% | Scavenger-Mutant 17% | Scavenger-Sprinter Dominant Class ---------------- Mutant | -10/Materials Scavenger-Mutant | -10/Mines Scavenger-Sprinter | -9/Materials Scavenger-Sprinter | -9/Mines Mutant | -8/Materials Resources | -11 -10 -10 -9 -9 -8 ----------- Run | Yrd Mat Min Mat Min Mat Matter Collected 554 | 221 154 158 . . 21 Remotely . | . . . . . . Salvage Created 403 | . 199 183 . . 21 Parts 34 | . 14 19 . . 1 Haulers Intercepted . | . . . . . . Recyclers Shooed . | . . . . . . Parts Field Recycled . | . . . . . . Retrieved Matter . | . . . . . . Parts Self-Destructed . | . . . . . . Prevented . | . . . . . . Kills | -11 -10 -10 -9 -9 -8 ------- Run | Yrd Mat Min Mat Min Mat Combat Hostiles Destroyed 13 | . 4 9 . . . Guns 13 | . 4 9 . . . Classes Destroyed 4 | . 2 1 . . 1 Worker 1 | . . . . . 1 Watcher 1 | . 1 . . . . Swarmer 7 | . . 7 . . . Grunt 6 | . 4 2 . . . Best Kill Streak 2 | . 2 2 . . 1 Combat Bots Only 2 | . 2 2 . . . Max Kills in Single Turn 1 | . 1 1 . . 1 Gunslinging . | . . . . . . Exploded . | . . . . . . Melee . | . . . . . . Uniques/NPCs Destroyed . | . . . . . . Combat | -11 -10 -10 -9 -9 -8 -------- Run | Yrd Mat Min Mat Min Mat Hostile Shots Fired 183 | . 30 100 7 . 46 Missed 52 | . 7 31 2 . 12 Damage Taken 1695 | . 289 639 61 . 706 Core 757 | . 23 146 24 . 564 Absorbed by Shields . | . . . . . . Core Remaining (%) 75 | 100 . 32 . 94 . Volleys Fired 72 | . 17 37 4 . 14 Largest 2 | . 2 2 2 . 2 Hottest 85 | . 40 85 85 . 85 Shots Fired 120 | . 34 62 7 . 17 Gun 120 | . 34 62 7 . 17 Cannon . | . . . . . . Launcher . | . . . . . . Special . | . . . . . . Kinetic 103 | . 34 52 4 . 13 Thermal 17 | . . 10 3 . 4 Explosive . | . . . . . . Electromagnetic . | . . . . . . Robot Hit Streak 9 | . 6 9 1 . 6 Robot Miss Streak 4 | . 2 4 1 . 2 Penetration Max . | . . . . . . Secondary Targets 2 | . . 2 . . . Max Gunslinging Chain 1 | . . 1 . . . Shots Hit Robots 65 | . 24 30 1 . 10 Core Hits 30 | . 12 13 . . 5 Critical Kills . | . . . . . . Critical Parts Destroyed . | . . . . . . Critical Strikes . | . . . . . . Melee Attacks . | . . . . . . Impact . | . . . . . . Slashing . | . . . . . . Piercing . | . . . . . . Sneak Attacks . | . . . . . . Combat Hostiles . | . . . . . . Follow-up Attacks . | . . . . . . Damage Inflicted 671 | . 239 316 10 . 106 Guns 671 | . 239 316 10 . 106 Cannons . | . . . . . . Explosions . | . . . . . . Melee . | . . . . . . Ramming . | . . . . . . Kinetic 566 | . 239 255 10 . 62 Thermal 105 | . . 61 . . 44 Explosive . | . . . . . . Electromagnetic . | . . . . . . Impact . | . . . . . . Slashing . | . . . . . . Piercing . | . . . . . . Highest Corruption . | . . . . . . Average Corruption . | . . . . . . Corruption Purged . | . . . . . . Corruption Blocked . | . . . . . . Overload Shots . | . . . . . . Overflow Damage . | . . . . . . Projectiles . | . . . . . . Explosions . | . . . . . . Melee . | . . . . . . Knockbacks . | . . . . . . Impact . | . . . . . . Kinetic . | . . . . . . Secondary . | . . . . . . Self-Inflicted Damage . | . . . . . . Shots . | . . . . . . Rammed . | . . . . . . Targets Rammed . | . . . . . . Kicked . | . . . . . . Crushed . | . . . . . . Highest Temperature 176 | . 18 176 137 . 72 Average Temperature 42 | . 8 45 56 . 33 Received Heat Transfer 333 | . 162 135 36 . . Siege Activations . | . . . . . . Robots Corrupted . | . . . . . . Combat Hostiles . | . . . . . . Parts Fried . | . . . . . . Impact Corruptions . | . . . . . . Robots Melted . | . . . . . . Combat Hostiles . | . . . . . . Parts Melted . | . . . . . . Heat Transferred 259 | . . 148 . . 111 Parts Sabotaged . | . . . . . . Parts Stolen . | . . . . . . Parts Stripped . | . . . . . . Power Chain Reactions . | . . . . . . Alert | -11 -10 -10 -9 -9 -8 ------- Run | Yrd Mat Min Mat Min Mat Peak Influence 149 | . 129 149 136 67 128 Initial 52 | . . 49 46 52 26 Average 83 | . 78 100 85 62 73 Maximum Alert Level . | . . . . . . Low Security (%) 100 | 100 100 100 100 100 100 Level 1 . | . . . . . . Level 2 . | . . . . . . Level 3 . | . . . . . . Level 4 . | . . . . . . Level 5 . | . . . . . . High Security . | . . . . . . Max Security . | . . . . . . Squads Dispatched 7 | . 1 . 3 . 3 Investigation 1 | . . . 1 . . Extermination . | . . . . . . Reinforcement 5 | . 1 . 2 . 2 Assault . | . . . . . . Garrison 1 | . . . . . 1 Intercept . | . . . . . . Searches Triggered . | . . . . . . Construction Impeded . | . . . . . . Haulers Reinforced . | . . . . . . Active Scanning Responses . | . . . . . . Cargo Convoy Interrupts . | . . . . . . Stealth | -11 -10 -10 -9 -9 -8 --------- Run | Yrd Mat Min Mat Min Mat Distress Signals 5 | . 1 . 2 . 2 Communications Jammed . | . . . . . . Distress Signals . | . . . . . . Times Spotted 35 | . 6 12 10 . 7 Peak Tracking Total 9 | . 2 3 9 . 8 Tactical Retreats 4 | . . 2 . . 2 Traps | -11 -10 -10 -9 -9 -8 ------- Run | Yrd Mat Min Mat Min Mat Traps Triggered 1 | . . . 1 . . Indirectly . | . . . . . . Trap Hack Attempts . | . . . . . . Triggered . | . . . . . . Disarmed . | . . . . . . Reprogrammed . | . . . . . . Reused . | . . . . . . Traps Extracted . | . . . . . . Installed . | . . . . . . Triggered . | . . . . . . Machines | -11 -10 -10 -9 -9 -8 ---------- Run | Yrd Mat Min Mat Min Mat Machines Disabled . | . . . . . . Max in Single Turn . | . . . . . . Machines Repaired . | . . . . . . Machines Dismantled . | . . . . . . Machines Sabotaged . | . . . . . . Overloaded Fab Kills . | . . . . . . Hacking | -11 -10 -10 -9 -9 -8 --------- Run | Yrd Mat Min Mat Min Mat Machines Accessed 7 | . 4 . 2 . 1 Terminals 5 | . 2 . 2 . 1 Fabricators . | . . . . . . Repair Stations . | . . . . . . Recycling Units 2 | . 2 . . . . Scanalyzers . | . . . . . . Garrison Access . | . . . . . . Total Hacks 16 | . 5 . 4 . 7 Successful 6 | . 3 . . . 3 Failed 10 | . 2 . 4 . 4 Catastrophic 3 | . 1 . 2 . . Database Lockouts . | . . . . . . Manual 1 | . 1 . . . . Terminals 14 | . 3 . 4 . 7 Fabricators . | . . . . . . Repair Stations . | . . . . . . Recycling Units 2 | . 2 . . . . Scanalyzers . | . . . . . . Garrison Access . | . . . . . . Terminal Hacks 4 | . 1 . . . 3 Robot Analysis 1 | . . . . . 1 Scanalyzer Index 1 | . . . . . 1 Surveillance Status 1 | . 1 . . . . Zone Layout 1 | . . . . . 1 Fabricator Hacks . | . . . . . . Repair Station Hacks . | . . . . . . Recycling Unit Hacks 2 | . 2 . . . . Report Inventory 2 | . 2 . . . . Scanalyzer . | . . . . . . Garrison Access Hacks . | . . . . . . Unauthorized Hacks . | . . . . . . Terminals . | . . . . . . Fabricators . | . . . . . . Repair Stations . | . . . . . . Recycling Units . | . . . . . . Scanalyzers . | . . . . . . Garrison Access . | . . . . . . Data Cores Recovered . | . . . . . . Used . | . . . . . . Hacking Detections 3 | . . . 2 . 1 Full Trace Events . | . . . . . . Feedback Events . | . . . . . . Feedback Blocked . | . . . . . . Robot Schematics Acquired . | . . . . . . Robots Built . | . . . . . . Authchips . | . . . . . . Time . | . . . . . . Total Robot Build Rating . | . . . . . . Part Schematics Acquired . | . . . . . . Parts Built . | . . . . . . Authchips . | . . . . . . Time . | . . . . . . Total Part Build Rating . | . . . . . . Parts Repaired . | . . . . . . Time . | . . . . . . Parts Recycled . | . . . . . . Recycled Matter . | . . . . . . Retrieved Matter . | . . . . . . Retrieved Components . | . . . . . . Parts Scanalyzed . | . . . . . . Part Schematics Acquired . | . . . . . . Parts Damaged . | . . . . . . Bothacking | -11 -10 -10 -9 -9 -8 ------------ Run | Yrd Mat Min Mat Min Mat Used RIF Installer . | . . . . . . Robots Hacked . | . . . . . . Non-combat . | . . . . . . Combat . | . . . . . . Robot Hacks Applied . | . . . . . . Relay Couplers Released . | . . . . . . Fabnet Peak Effective % . | . . . . . . Robots Rewired . | . . . . . . Allies Hacked . | . . . . . . Hacks Repelled . | . . . . . . Allies | -11 -10 -10 -9 -9 -8 -------- Run | Yrd Mat Min Mat Min Mat Total Allies . | . . . . . . Largest Group . | . . . . . . Highest-Rated Group . | . . . . . . Highest-Rated Ally . | . . . . . . Total Orders . | . . . . . . Ally Attacks . | . . . . . . Total Damage . | . . . . . . Kills . | . . . . . . Allies Corrupted . | . . . . . . Allies Melted . | . . . . . . Intel | -11 -10 -10 -9 -9 -8 ------- Run | Yrd Mat Min Mat Min Mat Robot Analysis Total 1 | . . . . . 1 Derelict Logs Recovered 3 | . . 1 . 2 . Drone Launches . | . . . . . . Drone Recoveries . | . . . . . . Exploration | -11 -10 -10 -9 -9 -8 ------------- Run | Yrd Mat Min Mat Min Mat Turns Passed 1229 | 67 291 586 55 115 115 Spaces Moved 1215 | 47 168 384 129 370 117 Core 14 | 6 . 1 . . 7 Treads . | . . . . . . Legs 519 | 41 168 310 . . . Wheels . | . . . . . . Hover . | . . . . . . Flight 682 | . . 73 129 370 110 Fastest Speed 31 | 50 120 117 31 31 31 Average Speed 76 | 111 120 121 31 31 41 Slowest Speed 250 | 120 120 250 31 31 200 Overloaded Moves . | . . . . . . Propulsion Burnouts . | . . . . . . Robots Hopped 1 | . . . . . 1 Cave-ins Triggered . | . . . . . . Exploration Rate (%) 43 | 3 41 94 24 77 19 Regions Visited 5 Branch Regions 2 Pre-discovered Areas 2 | . . 1 . 1 . Known Exits Taken . | . . . . . . Unknown Exits Taken 5 | 1 1 1 1 1 . Scrap Searched . | . . . . . . Spaces Dug . | . . . . . . Terrain Destroyed . | . . . . . . Melee . | . . . . . . Projectile . | . . . . . . AOE . | . . . . . . Terrain Rammed . | . . . . . . Walls Destroyed . | . . . . . . Machines Disabled . | . . . . . . Actions | -11 -10 -10 -9 -9 -8 --------- Run | Yrd Mat Min Mat Min Mat Total 1417 | 62 228 452 137 369 169 Wait 65 | . 25 7 2 . 31 Move 1208 | 46 167 383 128 369 115 Hop 1 | . . . . . 1 Pick Up 30 | 10 8 10 1 . 1 Fast Attach 1 | . . 1 . . . Attach 18 | 6 2 4 2 . 4 Detach . | . . . . . . Swap 6 | . 4 2 . . . Drop 16 | . 5 8 . . 3 Fire 72 | . 17 37 4 . 14 Melee . | . . . . . . Ram . | . . . . . . Kick . | . . . . . . Crush . | . . . . . . Escape Stasis . | . . . . . . Rewire . | . . . . . . Trap . | . . . . . . Miscellaneous . | . . . . . . Route ------- -11/Scrapyard -10/Materials -10/Mines (discovered 2 exits: *Mat x2) -9/Materials -9/Mines -8/Materials History --------- Turn | Location | Event 2 | -11/Scrapyard | Discovered new exit (range 16) 68 | -11/Scrapyard | Entered Materials 315 | -10/Materials | Build established: Mutant 341 | -10/Materials | Discovered new exit (range 15) 359 | -10/Materials | Entered Mines 413 | -10/Mines | Found a damaged Exp. Sensor Array with a note attached 416 | -10/Mines | Found Prototype Device 626 | -10/Mines | Discovered new exit (range 7) 804 | -10/Mines | Core integrity fell below 50% 854 | -10/Mines | Lost 4 parts (2n2w) 934 | -10/Mines | Discovered new exit (range 9) 945 | -10/Mines | Entered Materials 945 | -9/Materials | Evolved 2 slots: Propulsion x2 995 | -9/Materials | Discovered new exit (range 17) 1000 | -9/Materials | Entered Mines 1015 | -9/Mines | Learned Materials stockpile data 1021 | -9/Mines | Discovered new exit (range 13) 1031 | -9/Mines | Assembled infested the area 1115 | -9/Mines | Entered Materials 1115 | -8/Materials | Evolved 2 slots: Utility x2 1115 | -8/Materials | Identified Exp. Sensor Array 1130 | -8/Materials | Garrison activated, responded to threat 1200 | -8/Materials | Lost 7 parts (1p4n2w) 1213 | -8/Materials | Core integrity fell below 50% 1225 | -8/Materials | Core integrity fell below 20% 1230 | -8/Materials | Destroyed by C-17 Slicer with Blade Saw Last Messages --------------- K-01 Serf collects debris. W-25 Informer sends out distress signal. ALERT: Suspicious intruders detected, dispatching Cutter reinforcements to area. W-25 Informer sends out distress signal. Knocked back. K-01 Serf destroyed. Lgt. Assault Rifle destroyed. Flight Unit destroyed. Acquired 21 matter. Lgt. Nuclear Core destroyed. Flight Unit destroyed. Particle Gun destroyed. Particle Cannon severed. Lgt. Assault Rifle severed. Acquired Particle Cannon. Particle Cannon severed. Dropped Exp. Sensor Array. Discarded Visual Processing Unit. Dropped Sml. Storage Unit. Map ----- +----------------------------------------------------+ | | | | | | | | | | | | | | | | | | | | | | | | | | | | | | | | | | | | | | | | | | | | | | | ###########???????????????? | | # ] #???????????????? | | # @c #???????????????? | | # cc [ ! #???????????????? | | # !]! #???????????????? | | ######+####???????????????? | | ##???# #??????????????????? | | # ???# #??????????????????? | | # ??# #??????#???????????? | | # ?# #????""#???????????? | | # # #?? """#???????????? | | # # # """#???????????? | | # +=+ #???????????? | | # # ##########?????????? | | # # #?# "" #?????????? | | # ?# #?# ""S #?????????? | | ###??# #?# "" #?????????? | | # ?# #?# #???""????? | | # !?# #?# #??"""????? | | # !!# #?? #?""""????? | | # # ## #### """""???? | | # + / """ ??? | | # " #### ## #? | | # T ?????## #????????#? | | # " ???????# #??????????? | | # ???????# #??????????? | | ###????????# #??????????? | +----------------------------------------------------+ Best States ------------- Heat Dissipation 31 Energy Generation 14 Energy Capacity 250 Matter Stores 300 Matter Capacity 300 Sight Range 18 Robot Scan Range 20 Terrain Scan Density 10 Evasion (%) 63 Item Schematics ----------------- None Robot Schematics ------------------ None Fabricated ------------ Nothing Alien Tech Used ----------------- None Achievements -------------- None Challenges ------------ None Game ------ Seed CommTechMultitool Manual? 0 Play Time 00:15:33 Cumulative 34.8 hours Start 2024.12.14 @ 13:03:36 End 2024.12.14 @ 13:17:39 Sessions 1 Manual Loads 0 Difficulty Rogue Special Mode None Game No. 41 Rogue 41 Adventurer 0 Explorer 0 Win Type - Total 0 Types 0/0/0/0/0/0/0/0/0 Lore% 18 Gallery% 31 Achievement% 29 Wizard Run 0 Options --------- Layout 1 ASCII 0 Keyboard 0 Movement Mouse Keybinds 0 Fullscreen 1 Font 24/Smallcaps Map View 50x35 Zoom Use 0% Tactical HUD 0 Map Filters NONE Filters NONE Steam 1 RUN: cfe9ca28-f571-40e3-bf5c-9a981c414d1d